bitfinex/quotes_SOLUSD_20250219
["timestamp","ask_amount","ask_price","bid_price","bid_amount"]
[1739948490585,0.03,168.83,168.8,110.97658157]
[1739948491419,0.03,168.83,168.8,85.72]
[1739948491590,0.03,168.83,168.8,80.9]
[1739948491794,0.03,168.83,168.8,86.824]
[1739948492420,0.03,168.83,168.79,12.425]
[1739948492610,0.03,168.83,168.79,6.5009]
[1739948492921,19.36248157,168.83,168.77,19.33248157]
[1739948493220,19.33248157,168.82,168.76,19.39548157]
[1739948493419,19.33248157,168.81,168.76,0.063]
[1739948493856,19.33248157,168.82,168.76,0.063]
[1739948494350,19.33248157,168.81,168.76,0.063]
[1739948494520,0.03,168.83,168.79,19.33248157]
[1739948494725,0.03,168.83,168.8,19.33248157]
[1739948495852,0.03,168.83,168.79,39.33248157]
[1739948496054,0.03,168.83,168.8,5.9241]
[1739948496263,0.03,168.83,168.8,25.25658157]
[1739948496766,19.33248157,168.91,168.82,19.33248157]
[1739948496949,19.33248157,168.91,168.84,19.33248157]
[1739948497487,19.33248157,168.9,168.83,19.33248157]
[1739948497834,19.33248157,168.9,168.84,5.9227]
[1739948498245,88.6187,168.96,168.89,6.3329]
[1739948498566,19.33248157,168.9,168.85,6.3329]
[1739948499074,19.33248157,168.91,168.85,6.3329]
[1739948499868,82.7,168.95,168.89,20.0]
[1739948500070,19.33248157,168.9,168.86,1.6351]
[1739948500271,0.03,168.9,168.86,1.6351]
[1739948501473,19.36248157,168.9,168.86,1.6351]
[1739948501779,19.36248157,168.9,168.85,5.9221]
[1739948501985,19.36248157,168.9,168.84,87.2758]
[1739948502144,19.36248157,168.9,168.84,93.1985]
[1739948503649,19.36248157,168.9,168.84,112.53098157]
[1739948504269,0.03,168.9,168.84,112.53098157]
[1739948505770,0.03,168.9,168.84,93.1985]
[1739948506158,19.36248157,168.9,168.84,93.1985]
[1739948506493,82.7,168.95,168.89,27.56448157]
[1739948506781,19.33248157,168.93,168.84,7.5219]
[1739948506949,19.33248157,168.91,168.85,6.6328]
[1739948507293,102.03248157,168.93,168.86,19.33248157]
[1739948507483,19.33248157,168.92,168.85,25.96528157]
[1739948507990,19.33248157,168.92,168.86,5.922]
[1739948509315,19.33248157,168.91,168.85,6.6328]
[1739948509503,19.33248157,168.9,168.85,6.6328]
[1739948509709,19.33248157,168.89,168.85,6.6328]
[1739948510402,25.25318157,168.9,168.85,6.6328]
[1739948510793,19.33248157,168.9,168.85,6.6328]
[1739948511498,82.7,168.91,168.85,12.5552]
[1739948511822,102.03248157,168.91,168.85,12.5552]
[1739948512199,19.36248157,168.92,168.85,31.88768157]
[1739948513399,88.6185,168.96,168.88,6.3436]
[1739948513588,0.03,169.0,168.97,1.6175]
[1739948514507,0.03,169.0,168.97,20.94998157]
[1739948514916,0.03,169.0,168.98,19.33248157]
[1739948515087,0.03,169.0,168.99,19.33248157]
[1739948515487,82.7,169.13,168.99,19.33248157]
[1739948515788,19.33248157,169.11,169.04,19.33248157]
[1739948515990,5.9128,169.13,169.04,19.33248157]
[1739948516193,19.33248157,169.11,169.04,19.33248157]
[1739948516898,19.33248157,169.1,169.03,19.33248157]
[1739948517316,19.33248157,169.1,169.04,19.33248157]
[1739948517495,19.33248157,169.1,169.03,19.33248157]
[1739948517697,19.33248157,169.09,169.02,19.33248157]
[1739948517897,19.33248157,169.05,168.98,24.41248157]
[1739948518397,19.33248157,169.04,168.98,5.08]
[1739948518619,19.33248157,169.04,168.97,20.94998157]
[1739948518803,19.33248157,169.01,168.97,1.6175]
[1739948519120,19.33248157,169.0,168.96,6.4915]
[1739948519317,19.33248157,168.98,168.91,8.2366]
[1739948519498,19.33248157,168.99,168.92,19.33248157]
[1739948519806,19.33248157,169.09,169.01,20.0]
[1739948520006,19.33248157,169.09,169.02,19.33248157]
[1739948520528,19.33248157,169.06,168.99,24.53248157]
[1739948520731,19.33248157,169.05,168.99,24.53248157]
[1739948520900,19.33248157,169.05,168.99,5.2]
[1739948521096,19.33248157,169.05,168.98,19.33248157]
[1739948521823,19.33248157,169.05,169.02,20.0]
[1739948522409,25.24788157,169.05,169.02,20.0]
[1739948522608,82.7,169.07,169.02,20.0]
[1739948522817,102.03248157,169.07,169.02,20.0]
[1739948523519,19.33248157,169.06,169.02,20.0]
[1739948523720,82.7,169.07,169.02,20.0]
[1739948524018,19.33248157,169.08,169.02,20.0]
[1739948524195,19.36248157,169.09,169.02,45.24888157]
[1739948525228,0.03,169.09,169.06,19.33248157]
[1739948525719,0.03,169.09,169.05,19.33248157]
[1739948525897,0.03,169.09,169.04,19.33248157]
[1739948526099,0.03,169.09,169.03,7.5408]
[1739948526100,0.03,169.09,169.03,26.87328157]
[1739948526418,19.33248157,169.07,169.03,1.6247]
[1739948526815,19.33248157,169.06,169.02,20.0]
[1739948527020,19.33248157,169.07,169.02,20.0]
[1739948527703,102.03248157,169.08,169.02,20.0]
[1739948527918,102.03248157,169.08,169.02,45.24888157]
[1739948528118,102.03248157,169.08,169.02,20.0]
[1739948528320,19.33248157,169.05,169.02,20.0]
[1739948528527,19.33248157,169.06,169.02,20.0]
[1739948529428,0.03,169.09,169.02,20.0]
[1739948529608,0.03,169.09,169.03,19.33248157]
[1739948529797,0.03,169.09,169.05,19.33248157]
[1739948529997,0.03,169.09,169.07,19.33248157]
[1739948530618,0.03,169.09,169.07,25.24698157]
[1739948530818,0.03,169.09,169.07,5.9145]
[1739948531025,0.03,169.09,169.06,1.5355]
[1739948531324,0.03,169.09,169.06,7.4505]
[1739948531903,19.33248157,169.15,169.08,19.33248157]
[1739948532117,82.7,169.17,169.12,6.5507]
[1739948532303,19.33248157,169.18,169.12,25.88318157]
[1739948532508,25.24298157,169.19,169.12,25.88318157]
[1739948532821,19.33248157,169.18,169.12,31.79608157]
[1739948533335,19.33248157,169.18,169.12,25.88318157]
[1739948533709,19.33248157,169.15,169.12,6.5507]
[1739948533906,19.33248157,169.14,169.08,11.8013]
[1739948534109,19.33248157,169.12,169.08,11.8013]
[1739948534626,82.7,169.16,169.09,19.33248157]
[1739948534929,107.94428157,169.16,169.1,19.33248157]
[1739948535127,19.33248157,169.14,169.08,6.5813]
[1739948535301,19.33248157,169.12,169.08,6.5813]
[1739948535727,19.33248157,169.09,169.03,25.98318157]
[1739948535899,19.33248157,169.08,169.03,6.6507]
[1739948536509,19.33248157,169.09,169.03,25.98318157]
[1739948536831,82.7,169.1,169.05,19.33248157]
[1739948537000,82.7,169.1,169.06,19.33248157]
[1739948537427,88.6136,169.1,169.04,19.33248157]
[1739948537608,68.6136,169.1,169.04,19.33248157]
[1739948537808,87.94608157,169.1,169.04,19.33248157]
[1739948538308,19.33248157,169.12,169.05,19.33248157]
[1739948538506,19.33248157,169.11,169.05,19.33248157]
[1739948538713,19.33248157,169.07,169.03,6.6507]
[1739948539009,19.33248157,169.06,169.03,6.6507]
[1739948539418,19.33248157,169.05,169.03,6.6507]
[1739948539621,19.33248157,169.04,169.01,1.642]
[1739948539820,19.33248157,169.02,169.0,0.063]
[1739948540033,19.33248157,169.01,169.0,0.063]
[1739948540722,25.24928157,169.01,169.0,0.063]
[1739948541524,19.33248157,169.01,169.0,0.063]
[1739948541911,25.24928157,169.01,169.0,0.063]
[1739948542416,19.33248157,169.01,169.0,0.063]
[1739948543132,62.7,169.04,169.0,0.063]
[1739948543133,19.33248157,169.02,169.0,0.063]
[1739948543746,19.33248157,169.03,169.0,0.063]
[1739948543918,82.03248157,169.04,169.0,0.063]
[1739948544122,19.33248157,169.03,169.0,0.063]
[1739948544728,82.03248157,169.04,169.0,0.063]
[1739948546641,87.94838157,169.04,169.0,0.063]
[1739948546949,19.33248157,169.01,169.0,0.063]
[1739948547140,25.24928157,169.01,169.0,0.063]
[1739948554259,19.33248157,169.01,169.0,0.063]
[1739948554960,25.24928157,169.01,169.0,0.063]
[1739948555148,38.6611301,169.01,169.0,0.063]
[1739948557445,38.6611301,169.01,168.91,6.2039]
[1739948557446,20.0,168.97,168.91,6.2039]
[1739948557647,19.33248157,168.92,168.87,6.327]
[1739948557964,19.33248157,168.91,168.87,6.327]
[1739948558274,19.33248157,168.9,168.86,5.922]
[1739948559261,19.33248157,168.87,168.84,0.063]
[1739948559669,19.33248157,168.88,168.84,5.9856]
[1739948560053,82.7,168.92,168.87,19.33248157]
[1739948560242,19.33248157,168.93,168.87,19.33248157]
[1739948560446,19.33248157,168.92,168.86,19.33248157]
[1739948561175,82.7,168.96,168.87,19.33248157]
[1739948561176,5.9189,168.95,168.87,19.33248157]
[1739948561347,19.33248157,168.94,168.88,19.33248157]
[1739948561843,19.33248157,168.93,168.86,19.33248157]
[1739948562061,88.6181,168.98,168.89,39.33248157]
[1739948562259,107.95028157,168.98,168.92,6.309]
[1739948563054,102.03248157,168.98,168.92,25.64148157]
[1739948563270,102.03248157,168.98,168.92,31.56128157]
[1739948564752,82.7,168.98,168.94,19.33248157]
[1739948564951,102.03248157,169.01,168.94,19.33248157]
[1739948565271,19.33248157,169.02,168.96,5.9185]
[1739948565462,19.33248157,169.01,168.96,5.9185]
[1739948569170,82.7,169.03,168.96,25.25098157]
[1739948569367,82.7,169.03,168.97,20.90958157]
[1739948569368,102.03248157,169.03,168.97,20.90958157]
[1739948569939,14.7854,169.09,168.98,25.25028157]
[1739948569940,19.33248157,169.04,168.98,25.25028157]
[1739948570464,19.33248157,169.04,168.98,5.9178]
[1739948570851,19.33248157,169.03,168.97,1.5771]
[1739948571059,19.33248157,169.0,168.97,1.5771]
[1739948571980,19.33248157,168.99,168.96,0.063]
[1739948572669,19.33248157,169.0,168.96,0.063]
[1739948573652,19.33248157,169.0,168.96,5.9814]
[1739948573970,102.03248157,169.02,168.96,25.31388157]
[1739948575267,19.33248157,169.0,168.96,0.063]
[1739948575567,19.33248157,168.99,168.96,0.063]
[1739948575779,19.33248157,169.0,168.96,0.063]
[1739948575951,19.33248157,169.0,168.96,5.9814]
[1739948576469,19.33248157,168.99,168.96,0.063]
[1739948576662,19.33248157,169.0,168.96,0.063]
[1739948576964,19.33248157,169.0,168.96,5.9813]
[1739948577273,82.7,169.02,168.96,5.9813]
[1739948577274,102.03248157,169.02,168.96,5.9813]
[1739948577867,19.33248157,169.01,168.96,5.9813]
[1739948578271,19.33248157,169.0,168.96,0.063]
[1739948578475,19.33248157,169.0,168.96,5.9815]
[1739948578651,19.33248157,169.0,168.96,0.063]
[1739948579664,19.33248157,168.98,168.96,0.063]
[1739948580776,12.0664789,168.97,168.96,0.063]
[1739948581669,17.9846789,168.97,168.96,0.063]
[1739948583366,12.0664789,168.97,168.96,0.063]
[1739948584099,12.0664789,168.98,168.96,0.063]
[1739948584593,12.0664789,168.97,168.96,0.063]
[1739948585383,17.9846789,168.97,168.96,0.063]
[1739948585586,12.0664789,168.98,168.96,0.063]
[1739948585894,12.0664789,168.99,168.96,0.063]
[1739948586997,12.0664789,168.98,168.96,0.063]
[1739948588093,12.0664789,168.99,168.96,0.063]
[1739948588981,12.0664789,168.98,168.96,0.063]
[1739948590197,12.0664789,168.99,168.96,0.063]
[1739948590586,12.0664789,169.0,168.96,0.063]
[1739948590888,12.0664789,169.0,168.96,6.3641]
[1739948591090,12.0664789,168.99,168.96,6.3641]
[1739948591288,12.0664789,169.0,168.96,6.3641]
[1739948591691,12.0664789,169.0,168.96,12.2826]
[1739948592279,94.7664789,169.01,168.96,12.2826]
[1739948592789,94.7664789,169.01,168.97,1.5322]
[1739948593186,94.7664789,169.05,168.98,12.0664789]
[1739948593705,94.7664789,169.05,168.99,5.9175]
[1739948594200,82.7,169.05,169.0,12.0664789]
[1739948594415,12.0664789,169.07,169.0,12.0664789]
[1739948595117,82.7,169.09,169.03,12.0664789]
[1739948595410,12.0664789,169.09,169.03,12.0664789]
[1739948595700,0.03,169.1,169.04,17.9821789]
[1739948595701,12.0964789,169.1,169.04,17.9821789]
[1739948595895,0.03,169.1,169.05,1.5104]
[1739948596092,0.03,169.1,169.05,13.5768789]
[1739948596283,0.03,169.1,169.06,12.0664789]
[1739948597288,0.03,169.1,169.05,13.5768789]
[1739948597602,0.03,169.1,169.06,5.915]
[1739948598107,0.03,169.1,169.06,17.9814789]
[1739948598505,0.03,169.1,169.08,12.0664789]
[1739948599586,0.03,169.1,169.09,12.0664789]
[1739948599787,0.03,169.1,169.08,17.9804789]
[1739948601104,0.03,169.1,169.08,5.914]
[1739948602637,12.0964789,169.1,169.07,6.2732]
[1739948602795,12.0964789,169.1,169.07,12.1878]
[1739948603000,0.03,169.1,169.07,6.2732]
[1739948603392,0.03,169.1,169.07,12.1878]
[1739948604000,0.03,169.1,169.07,6.2732]
[1739948604209,12.0964789,169.1,169.07,6.2732]
[1739948604406,0.03,169.1,169.07,6.2732]
[1739948606014,12.0664789,169.09,169.07,6.2732]
[1739948606828,12.0964789,169.1,169.07,6.2732]
[1739948607814,0.03,169.09,169.07,6.2732]
[1739948609024,12.0964789,169.09,169.05,1.5104]
[1739948609221,12.0664789,169.08,169.05,1.5104]
[1739948609400,12.0964789,169.09,169.05,1.5104]
[1739948611422,12.0664789,169.08,169.05,1.5104]
[1739948611614,12.0964789,169.09,169.05,1.5104]
[1739948612125,12.0664789,169.08,169.03,5.9161]
[1739948613335,12.0964789,169.09,169.03,5.9161]
[1739948615309,12.0664789,169.08,169.03,5.9161]
[1739948615925,12.0664789,169.08,169.02,12.5094]
[1739948616125,5.9442,169.09,169.02,24.5758789]
[1739948616326,12.0664789,169.08,169.02,24.5758789]
[1739948616531,12.0964789,169.09,169.02,24.5758789]
[1739948616721,12.0964789,169.09,169.03,12.0664789]
[1739948616925,0.03,169.09,169.04,12.0664789]
[1739948617249,0.03,169.09,169.05,12.0664789]
[1739948617615,0.03,169.09,169.04,12.0664789]
[1739948618714,0.03,169.09,169.06,12.0664789]
[1739948620818,0.03,169.09,169.07,5.9147]
[1739948621762,0.03,169.09,169.05,12.0664789]
[1739948621962,12.0964789,169.09,169.05,5.9151]
[1739948622184,0.03,169.09,169.05,5.9151]
[1739948622887,0.03,169.09,169.05,17.9815789]
[1739948623989,0.03,169.09,169.05,5.9151]
[1739948625096,12.0664789,169.08,169.03,86.816]
[1739948625397,12.0664789,169.08,169.02,24.5759789]
[1739948626097,0.03,169.09,169.02,24.5759789]
[1739948626382,12.0964789,169.09,169.03,12.0664789]
[1739948626682,0.03,169.09,169.05,12.0664789]
[1739948627061,0.03,169.09,169.06,5.915]
[1739948628365,0.03,169.09,169.04,12.0664789]
[1739948628567,0.03,169.09,169.02,21.3842]
[1739948628568,0.03,169.09,169.07,12.0664789]
[1739948628881,0.03,169.09,169.08,12.0664789]
[1739948630764,0.03,169.09,169.08,17.9807789]
[1739948631183,0.03,169.09,169.07,17.9810789]
[1739948631390,0.03,169.09,169.07,5.9146]
[1739948631885,0.03,169.09,169.07,17.9810789]
[1739948632565,0.03,169.09,169.07,7.70814646]
[1739948634787,0.03,169.09,169.08,5.9143]
[1739948637883,0.03,169.09,169.07,5.9146]
[1739948639184,0.03,169.09,169.06,5.9149]
[1739948640211,0.03,169.09,169.05,5.9154]
[1739948646296,0.03,169.09,169.05,28.41204646]
[1739948650788,0.03,169.09,169.05,5.9154]
[1739948650986,7.70814646,169.08,169.03,5.9161]
[1739948651203,7.70814646,169.06,169.03,5.9161]
[1739948651380,7.70814646,169.07,169.03,5.9161]
[1739948651586,7.70814646,169.08,169.03,5.9161]
[1739948657111,0.03,169.09,169.05,7.70814646]
[1739948657408,0.03,169.09,169.06,7.70814646]
[1739948657621,0.03,169.09,169.07,5.9147]
[1739948658002,0.03,169.09,169.07,13.62284646]
[1739948659050,0.03,169.09,169.07,5.9147]
[1739948659541,0.03,169.09,169.05,7.70814646]
[1739948660334,0.03,169.09,169.06,5.915]
[1739948661048,0.03,169.09,169.06,13.62314646]
[1739948664331,0.03,169.09,169.07,7.70814646]
[1739948665032,0.03,169.09,169.06,13.62314646]
[1739948666145,0.03,169.09,169.06,5.915]
[1739948669944,0.03,169.09,169.05,5.9153]
[1739948671831,7.73814646,169.09,169.05,5.9153]
[1739948672030,7.73814646,169.09,169.02,14.30124646]
[1739948672031,7.70814646,169.08,169.02,14.30124646]
[1739948672227,7.70814646,169.08,169.03,5.916]
[1739948672924,0.03,169.09,169.03,13.62414646]
[1739948673123,7.73814646,169.09,169.03,13.62414646]
[1739948673841,0.03,169.09,169.04,7.70814646]
[1739948674017,7.73814646,169.09,169.03,13.62414646]
[1739948674727,7.70814646,169.08,169.03,5.916]
[1739948676433,7.73814646,169.09,169.03,13.62414646]
[1739948679034,0.03,169.09,169.04,7.70814646]
[1739948679253,0.03,169.09,169.06,27.70814646]
[1739948679444,0.03,169.09,169.07,7.70814646]
[1739948680448,0.03,169.09,169.08,7.70814646]
[1739948680654,0.03,169.09,169.08,13.62244646]
[1739948684169,0.0001,169.09,169.08,13.62244646]
[1739948684464,90.40814646,169.18,169.08,28.40834646]
[1739948684668,7.70814646,169.18,169.12,7.70814646]
[1739948685069,82.7,169.2,169.13,13.62074646]
[1739948685265,82.7,169.2,169.15,7.70814646]
[1739948685872,82.671,169.2,169.15,7.70814646]
[1739948686466,82.671,169.2,169.16,7.70814646]
[1739948686786,7.70814646,169.22,169.16,7.70814646]
[1739948687072,7.70814646,169.22,169.17,5.9112]
[1739948689050,90.37914646,169.24,169.18,7.70814646]
[1739948689252,7.70814646,169.24,169.18,7.70814646]
[1739948689460,7.70814646,169.25,169.19,7.70814646]
[1739948689670,0.03,169.26,169.2,7.70814646]
[1739948689965,0.03,169.26,169.21,7.70814646]
[1739948690273,0.03,169.26,169.24,27.70814646]
[1739948691258,0.03,169.26,169.25,5.9084]
[1739948691460,0.03,169.26,169.25,13.61654646]
[1739948692062,0.03,169.26,169.25,5.9084]
[1739948693648,0.03,169.26,169.23,5.9091]
[1739948693854,7.73814646,169.26,169.23,5.9091]
[1739948694979,0.03,169.26,169.23,13.61724646]
[1739948695292,0.03,169.26,169.22,7.70814646]
[1739948695469,0.03,169.26,169.21,13.61794646]
[1739948697290,0.03,169.26,169.22,7.70814646]
[1739948697992,0.03,169.26,169.24,7.70814646]
[1739948698293,0.03,169.26,169.23,7.70814646]
[1739948698492,0.03,169.26,169.24,20.0]
[1739948699273,0.03,169.26,169.25,5.9084]
[1739948701980,0.03,169.26,169.25,13.61654646]
[1739948704491,0.03,169.26,169.25,5.9084]
[1739948705196,0.03,169.26,169.24,5.9087]
[1739948705705,0.03,169.26,169.24,13.61684646]
[1739948706203,84.2977,169.35,169.25,7.70814646]
[1739948706501,7.70814646,169.32,169.26,7.70814646]
[1739948706799,7.70814646,169.31,169.25,7.70814646]
[1739948707005,90.2027,169.35,169.24,28.38874646]
[1739948707006,7.70814646,169.3,169.24,28.38874646]
[1739948707576,84.2977,169.35,169.24,5.9087]
[1739948707577,7.70814646,169.29,169.24,5.9087]
[1739948707902,5.906,169.32,169.23,150.66814646]
[1739948707903,7.70814646,169.28,169.23,5.909]
[1739948708105,7.70814646,169.29,169.23,13.61714646]
[1739948712202,7.70814646,169.27,169.22,88.60814646]
[1739948712401,7.70814646,169.27,169.22,5.9093]
[1739948712587,7.70814646,169.26,169.2,7.77114646]
[1739948713207,7.70814646,169.27,169.21,13.61784646]
[1739948713387,90.37914646,169.29,169.23,7.70814646]
[1739948713593,7.70814646,169.28,169.22,7.70814646]
[1739948713790,7.70814646,169.26,169.21,5.9097]
[1739948714207,7.70814646,169.27,169.21,13.61784646]
[1739948714412,7.70814646,169.28,169.22,7.70814646]
[1739948714597,85.58286867,169.32,169.21,5.9097]
[1739948714598,7.70814646,169.26,169.21,5.9097]
[1739948716200,7.70814646,169.25,169.2,80.963]
[1739948716384,7.70814646,169.24,169.2,80.963]
[1739948716581,7.70814646,169.22,169.2,0.063]
[1739948716786,7.70814646,169.21,169.2,0.063]
[1739948716980,7.70814646,169.22,169.2,0.063]
[1739948717207,90.37914646,169.23,169.2,0.063]
[1739948718027,7.70814646,169.22,169.2,0.063]
[1739948718397,7.70814646,169.21,169.2,0.063]
[1739948719404,13.61794646,169.21,169.2,0.063]
[1739948720007,15.21974646,169.21,169.2,0.063]
[1739948720795,9.30994646,169.21,169.2,0.063]
[1739948721690,15.21974646,169.21,169.2,0.063]
[1739948721888,9.30994646,169.21,169.2,0.063]
[1739948723412,7.70814646,169.21,169.2,0.063]
[1739948724109,13.61794646,169.21,169.2,0.063]
[1739948724892,7.70814646,169.21,169.2,0.063]
[1739948725408,1.6662,169.26,169.2,0.063]
[1739948725614,7.70814646,169.22,169.2,0.063]
[1739948725825,7.70814646,169.24,169.2,0.063]
[1739948726001,7.70814646,169.25,169.2,0.063]
[1739948727193,7.70814646,169.24,169.2,0.063]
[1739948727402,7.70814646,169.23,169.2,0.063]
[1739948727732,7.70814646,169.22,169.2,0.063]
[1739948729933,7.70814646,169.21,169.2,0.063]
[1739948731338,7.70814646,169.22,169.2,0.063]
[1739948732498,0.03,169.26,169.2,7.77114646]
[1739948732715,0.03,169.26,169.21,14.02034646]
[1739948733435,0.03,169.26,169.22,5.9094]
[1739948735228,0.03,169.26,169.22,7.428]
[1739948735867,7.70814646,169.23,169.2,0.063]
[1739948736045,7.70814646,169.21,169.2,0.063]
[1739948737051,7.70814646,169.22,169.2,0.063]
[1739948737240,7.70814646,169.23,169.2,0.063]
[1739948737445,90.40814646,169.24,169.2,0.063]
[1739948737634,0.03,169.26,169.2,0.063]
[1739948737851,0.03,169.26,169.21,27.70814646]
[1739948739389,0.03,169.26,169.22,1.6432]
[1739948739559,0.03,169.26,169.23,5.9091]
[1739948741964,7.73814646,169.26,169.23,5.9091]
[1739948744297,0.03,169.26,169.23,5.9091]
[1739948745297,0.03,169.26,169.23,13.61724646]
[1739948745459,0.03,169.26,169.25,5.9084]
[1739948745978,0.03,169.26,169.24,12.416]
[1739948750568,0.03,169.26,169.24,20.12414646]
[1739948750869,82.7,169.34,169.25,7.70814646]
[1739948751069,82.7,169.34,169.26,7.70814646]
[1739948751273,7.70814646,169.32,169.26,7.70814646]
[1739948751489,7.70814646,169.32,169.27,5.9077]
[1739948752674,7.70814646,169.33,169.27,28.38514646]
[1739948752993,7.70814646,169.33,169.27,247.58514646]
[1739948753291,7.70814646,169.32,169.27,225.1077]
[1739948753475,7.70814646,169.33,169.27,13.61584646]
[1739948754087,82.7,169.37,169.27,28.38514646]
[1739948754281,7.70814646,169.33,169.27,109.28514646]
[1739948754587,7.70814646,169.34,169.28,7.70814646]
[1739948755184,7.70814646,169.33,169.27,109.28514646]
[1739948757273,7.70814646,169.34,169.28,7.70814646]
[1739948757472,7.70814646,169.33,169.28,5.9073]
[1739948758697,88.6043,169.37,169.28,5.9073]
[1739948758698,7.70814646,169.32,169.28,5.9073]
[1739948758880,7.70814646,169.31,169.28,5.9073]
[1739948759590,7.70814646,169.31,169.26,5.908]
[1739948760077,82.7,169.4,169.29,7.70814646]
[1739948760271,7.70814646,169.36,169.3,7.70814646]
[1739948760801,1.6618,169.41,169.32,7.70814646]
[1739948761009,1.6618,169.41,169.31,6.1905]
[1739948761010,7.70814646,169.36,169.31,6.1905]
[1739948761390,7.70814646,169.37,169.31,6.1905]
[1739948761916,7.70814646,169.37,169.32,5.9059]
[1739948764288,7.70814646,169.38,169.32,13.61404646]
[1739948764581,7.70814646,169.38,169.32,28.37894646]
[1739948765902,7.70814646,169.38,169.32,13.61404646]
[1739948766502,7.70814646,169.38,169.32,5.9059]
[1739948767015,7.70814646,169.36,169.32,5.9059]
[1739948767222,7.70814646,169.36,169.31,12.0967]
[1739948767792,7.70814646,169.34,169.31,6.1905]
[1739948767995,7.70814646,169.32,169.28,5.907]
[1739948768309,7.70814646,169.32,169.27,12.0691]
[1739948768831,7.70814646,169.33,169.27,19.77724646]
[1739948769812,7.70814646,169.31,169.27,6.1615]
[1739948770014,7.70814646,169.29,169.26,0.063]
[1739948770827,12.02200146,169.29,169.26,0.063]
[1739948771603,12.02200146,169.28,169.26,0.063]
[1739948772844,82.7,169.3,169.24,0.063]
[1739948772845,94.72200146,169.27,169.24,0.063]
[1739948773049,12.02200146,169.25,169.24,0.063]
[1739948773654,17.93040146,169.25,169.24,0.063]
[1739948774915,18.93040146,169.25,169.24,0.063]
[1739948775746,18.93040146,169.25,169.11,103.8411]
[1739948775747,20.0,169.18,169.07,94.9241]
[1739948775945,12.02200146,169.13,169.07,26.04610146]
[1739948776152,12.02200146,169.13,169.07,14.0241]
[1739948776517,12.02200146,169.12,169.07,14.0241]
[1739948776711,12.02200146,169.12,169.07,8.1095]
[1739948776912,12.02200146,169.1,169.07,0.063]
[1739948778257,2.89322618,169.14,169.08,12.02200146]
[1739948778258,12.02200146,169.14,169.08,12.02200146]
[1739948778420,12.02200146,169.15,169.08,12.02200146]
[1739948778619,12.02200146,169.14,169.08,12.02200146]
[1739948778846,12.02200146,169.12,169.07,0.063]
[1739948779451,12.02200146,169.11,169.07,0.063]
[1739948779955,12.02200146,169.13,169.07,12.08500146]
[1739948780855,12.02200146,169.17,169.11,12.02200146]
[1739948781163,4.7,169.2,169.13,12.02200146]
[1739948781164,12.02200146,169.19,169.13,12.02200146]
[1739948781530,12.02200146,169.21,169.15,12.02200146]
[1739948781757,12.02200146,169.21,169.16,5.9115]
[1739948781961,12.02200146,169.2,169.13,5.9126]
[1739948782121,12.02200146,169.16,169.12,4.7]
[1739948782326,12.02200146,169.2,169.1,6.4979]
[1739948782327,12.02200146,169.15,169.11,5.9132]
[1739948782728,12.02200146,169.14,169.1,6.4979]
[1739948783023,12.02200146,169.15,169.1,12.4113]
[1739948783245,82.7,169.17,169.1,24.43330146]
[1739948783450,82.7,169.17,169.11,12.02200146]
[1739948783638,12.02200146,169.16,169.1,24.43330146]
[1739948783838,12.02200146,169.15,169.1,12.4113]
[1739948784041,12.02200146,169.14,169.1,12.4113]
[1739948784331,12.02200146,169.13,169.1,6.4979]
[1739948784553,12.02200146,169.12,169.1,6.4979]
[1739948785748,12.02200146,169.11,169.09,0.063]
[1739948785958,12.02200146,169.1,169.09,0.063]
[1739948787948,12.02200146,169.12,169.09,0.063]
[1739948788424,12.02200146,169.1,169.09,0.063]
[1739948789931,82.7,169.13,169.09,12.08500146]
[1739948790147,12.02200146,169.17,169.11,12.02200146]
[1739948790738,19.26024967,169.18,169.12,19.26024967]
[1739948791864,19.26024967,169.21,169.15,6.5172]
[1739948792170,19.26024967,169.19,169.15,6.5172]